[Event "Titled Tuesday Blitz March 01 Late 2022"]
[White "Vifleemskaia, Svetlana"]
[Black "Bibasa, Bob"]
[WhiteFideId "4129490"]
[BlackFideId "10000240"]
[WhiteElo "1901"]
[BlackElo "2056"]
[Result "0-1"]
[Round "08"]
[TimeControl "180+1"]
[Date "2022.03.02"]
[WhiteClock "0:00:06"]
[BlackClock "0:00:38"]

1. d4 {[%clk 0:03:00]}  Nf6 {[%clk 0:02:59]} 2. c4 {[%clk 0:02:58]}  e6 {[%clk 0:02:59]} 3. Nc3 {[%clk 0:02:58]}  Bb4 {[%clk 0:02:59]} 4. e3 {[%clk 0:02:58]}  b6 {[%clk 0:02:59]} 5. Ne2 {[%clk 0:02:58]}  Bb7 {[%clk 0:02:58]} 6. a3 {[%clk 0:02:58]}  Be7 {[%clk 0:02:59]} 7. d5 {[%clk 0:02:59]}  O-O {[%clk 0:02:58]} 8. g3 {[%clk 0:02:58]}  d6 {[%clk 0:02:56]} 9. Bg2 {[%clk 0:02:58]}  e5 {[%clk 0:02:56]} 10. O-O {[%clk 0:02:58]}  Nbd7 {[%clk 0:02:56]} 11. b4 {[%clk 0:02:56]}  a5 {[%clk 0:02:56]} 12. Bd2 {[%clk 0:02:54]}  g6 {[%clk 0:02:53]} 13. e4 {[%clk 0:02:51]}  Nh5 {[%clk 0:02:51]} 14. Bf3 {[%clk 0:02:45]}  Ng7 {[%clk 0:02:49]} 15. Bh6 {[%clk 0:02:37]}  Bg5 {[%clk 0:02:49]} 16. Bxg5 {[%clk 0:02:34]}  Qxg5 {[%clk 0:02:49]} 17. Qc1 {[%clk 0:02:34]}  Qe7 {[%clk 0:02:41]} 18. Bg2 {[%clk 0:02:32]}  f5 {[%clk 0:02:41]} 19. f3 {[%clk 0:02:27]}  f4 {[%clk 0:02:37]} 20. Qd2 {[%clk 0:02:03]}  g5 {[%clk 0:02:34]} 21. g4 {[%clk 0:02:03]}  h5 {[%clk 0:02:33]} 22. h3 {[%clk 0:02:03]}  hxg4 {[%clk 0:02:33]} 23. hxg4 {[%clk 0:01:54]}  Kf7 {[%clk 0:02:32]} 24. Kf2 {[%clk 0:01:54]}  Rh8 {[%clk 0:02:29]} 25. Rh1 {[%clk 0:01:54]}  Qf6 {[%clk 0:02:23]} 26. Nb5 {[%clk 0:01:48]}  axb4 {[%clk 0:02:14]} 27. axb4 {[%clk 0:01:43]}  Rxa1 {[%clk 0:02:13]} 28. Rxa1 {[%clk 0:01:42]}  Rh2 {[%clk 0:02:13]} 29. Rh1 {[%clk 0:01:38]}  Qh6 {[%clk 0:02:10]} 30. Rxh2 {[%clk 0:01:38]}  Qxh2 {[%clk 0:02:11]} 31. Nxc7 {[%clk 0:01:32]}  Nf6 {[%clk 0:01:59]} 32. Nb5 {[%clk 0:01:24]}  Ke7 {[%clk 0:01:55]} 33. Qe1 {[%clk 0:01:13]}  Qh4+ {[%clk 0:01:30]} 34. Kf1 {[%clk 0:01:09]}  Nxg4 {[%clk 0:01:29]} 35. fxg4 {[%clk 0:00:55]}  Qxg4 {[%clk 0:01:29]} 36. Qf2 {[%clk 0:00:54]}  Bc8 {[%clk 0:01:20]} 37. Nxd6 {[%clk 0:00:49]}  Kxd6 {[%clk 0:01:10]} 38. Qxb6+ {[%clk 0:00:49]}  Ke7 {[%clk 0:01:11]} 39. Qg6 {[%clk 0:00:40]}  Kf8 {[%clk 0:01:06]} 40. Qf6+ {[%clk 0:00:39]}  Kg8 {[%clk 0:01:07]} 41. Qd8+ {[%clk 0:00:20]}  Kh7 {[%clk 0:01:06]} 42. Qf8 {[%clk 0:00:20]}  Qh4 {[%clk 0:00:55]} 43. Qf6 {[%clk 0:00:18]}  Bg4 {[%clk 0:00:51]} 44. d6 {[%clk 0:00:15]}  Bxe2+ {[%clk 0:00:49]} 45. Kxe2 {[%clk 0:00:14]}  Qg3 {[%clk 0:00:48]} 46. Kf1 {[%clk 0:00:11]}  g4 {[%clk 0:00:42]} 47. d7 {[%clk 0:00:11]}  Qd3+ {[%clk 0:00:43]} 48. Kf2 {[%clk 0:00:09]}  g3+ {[%clk 0:00:42]} 49. Kg1 {[%clk 0:00:08]}  Qd4+ {[%clk 0:00:37]} 50. Kh1 {[%clk 0:00:06]}  Qd1+ {[%clk 0:00:38]} 0-1


[Site "https://www.chess.com"]

[Event "Titled Tuesday Blitz March 01 Late 2022"]
[White "Voit, Daria"]
[Black "Garriga Cazorla, Pere"]
[WhiteFideId "4182146"]
[BlackFideId "32011601"]
[WhiteElo "2323"]
[BlackElo "2458"]
[Result "0-1"]
[Round "08"]
[TimeControl "180+1"]
[Date "2022.03.01"]
[WhiteClock "0:00:01"]
[BlackClock "0:00:17"]

1. Nf3 {[%clk 0:02:59]}  c5 {[%clk 0:02:57]} 2. e4 {[%clk 0:02:58]}  d6 {[%clk 0:02:56]} 3. Bb5+ {[%clk 0:02:56]}  Nd7 {[%clk 0:02:55]} 4. Ba4 {[%clk 0:02:56]}  Nf6 {[%clk 0:02:52]} 5. e5 {[%clk 0:02:56]}  dxe5 {[%clk 0:02:51]} 6. Nxe5 {[%clk 0:02:56]}  e6 {[%clk 0:02:52]} 7. O-O {[%clk 0:02:52]}  Be7 {[%clk 0:02:50]} 8. d4 {[%clk 0:02:50]}  O-O {[%clk 0:02:50]} 9. Bf4 {[%clk 0:02:44]}  Nxe5 {[%clk 0:02:39]} 10. dxe5 {[%clk 0:02:36]}  Nd5 {[%clk 0:02:40]} 11. Bg3 {[%clk 0:02:33]}  Nb6 {[%clk 0:02:19]} 12. c3 {[%clk 0:02:15]}  Nxa4 {[%clk 0:02:18]} 13. Qxa4 {[%clk 0:02:12]}  Bd7 {[%clk 0:02:18]} 14. Qf4 {[%clk 0:02:10]}  Bc6 {[%clk 0:02:18]} 15. Na3 {[%clk 0:02:06]}  Qd5 {[%clk 0:02:16]} 16. f3 {[%clk 0:02:06]}  Rad8 {[%clk 0:02:15]} 17. Bf2 {[%clk 0:02:00]}  b5 {[%clk 0:02:02]} 18. Nc2 {[%clk 0:01:55]}  Qd2 {[%clk 0:01:56]} 19. Qxd2 {[%clk 0:01:53]}  Rxd2 {[%clk 0:01:57]} 20. Rac1 {[%clk 0:01:53]}  Bg5 {[%clk 0:01:46]} 21. Bxc5 {[%clk 0:01:52]}  Rfd8 {[%clk 0:01:41]} 22. Bd4 {[%clk 0:01:36]}  a5 {[%clk 0:01:29]} 23. Rfd1 {[%clk 0:01:17]}  Re2 {[%clk 0:01:20]} 24. Re1 {[%clk 0:01:17]}  Bxc1 {[%clk 0:01:15]} 25. Rxe2 {[%clk 0:01:16]}  Bxb2 {[%clk 0:01:16]} 26. Ne1 {[%clk 0:01:07]}  Ba3 {[%clk 0:01:13]} 27. Rc2 {[%clk 0:01:01]}  Bd5 {[%clk 0:01:04]} 28. Kf2 {[%clk 0:00:56]}  Rc8 {[%clk 0:01:04]} 29. Ke3 {[%clk 0:00:55]}  Be7 {[%clk 0:01:01]} 30. g3 {[%clk 0:00:53]}  b4 {[%clk 0:00:55]} 31. cxb4 {[%clk 0:00:51]}  Rxc2 {[%clk 0:00:52]} 32. Nxc2 {[%clk 0:00:51]}  axb4 {[%clk 0:00:53]} 33. Bb2 {[%clk 0:00:40]}  Bxa2 {[%clk 0:00:51]} 34. Nd4 {[%clk 0:00:40]}  Bd5 {[%clk 0:00:50]} 35. f4 {[%clk 0:00:38]}  Kf8 {[%clk 0:00:50]} 36. Kd3 {[%clk 0:00:37]}  Ke8 {[%clk 0:00:50]} 37. Nb5 {[%clk 0:00:37]}  Kd7 {[%clk 0:00:48]} 38. Bd4 {[%clk 0:00:32]}  f6 {[%clk 0:00:39]} 39. exf6 {[%clk 0:00:30]}  gxf6 {[%clk 0:00:39]} 40. h4 {[%clk 0:00:28]}  Kc6 {[%clk 0:00:39]} 41. Na7+ {[%clk 0:00:27]}  Kd7 {[%clk 0:00:35]} 42. Nb5 {[%clk 0:00:24]}  Bg2 {[%clk 0:00:34]} 43. Ke2 {[%clk 0:00:16]}  Kc6 {[%clk 0:00:33]} 44. Na7+ {[%clk 0:00:15]}  Kd5 {[%clk 0:00:33]} 45. Be3 {[%clk 0:00:12]}  Bc5 {[%clk 0:00:32]} 46. Nb5 {[%clk 0:00:08]}  Kc4 {[%clk 0:00:25]} 47. Nc7 {[%clk 0:00:07]}  e5 {[%clk 0:00:19]} 48. fxe5 {[%clk 0:00:01]}  fxe5 {[%clk 0:00:20]} 49. Ne6 {[%clk 0:00:01]}  Bd6 {[%clk 0:00:17]} 0-1


[Site "https://www.chess.com"]

[Event "Titled Tuesday Blitz March 01 Late 2022"]
[White "Yuan, Qingyu"]
[Black "Indjic, Aleksandar"]
[WhiteFideId "8609772"]
[BlackFideId "911925"]
[WhiteElo "2359"]
[BlackElo "2616"]
[Result "0-1"]
[Round "08"]
[TimeControl "180+1"]
[Date "2022.03.01"]
[WhiteClock "0:00:02"]
[BlackClock "0:00:15"]

1. e4 {[%clk 0:03:00]}  c6 {[%clk 0:02:59]} 2. Nf3 {[%clk 0:03:00]}  d5 {[%clk 0:02:59]} 3. Nc3 {[%clk 0:03:01]}  Bg4 {[%clk 0:02:58]} 4. h3 {[%clk 0:03:01]}  Bxf3 {[%clk 0:02:59]} 5. Qxf3 {[%clk 0:03:01]}  e6 {[%clk 0:02:59]} 6. Be2 {[%clk 0:02:51]}  Bc5 {[%clk 0:02:51]} 7. O-O {[%clk 0:02:45]}  Nd7 {[%clk 0:02:49]} 8. exd5 {[%clk 0:02:39]}  exd5 {[%clk 0:02:41]} 9. Re1 {[%clk 0:02:37]}  Ne7 {[%clk 0:02:40]} 10. Na4 {[%clk 0:02:36]}  Bd4 {[%clk 0:02:26]} 11. c3 {[%clk 0:02:17]}  Bf6 {[%clk 0:02:24]} 12. d4 {[%clk 0:02:05]}  O-O {[%clk 0:02:24]} 13. Bd3 {[%clk 0:02:00]}  Ng6 {[%clk 0:02:21]} 14. b3 {[%clk 0:01:45]}  b5 {[%clk 0:02:18]} 15. Nb2 {[%clk 0:01:41]}  a5 {[%clk 0:02:08]} 16. Be3 {[%clk 0:01:21]}  b4 {[%clk 0:02:06]} 17. cxb4 {[%clk 0:01:17]}  axb4 {[%clk 0:02:07]} 18. Na4 {[%clk 0:01:13]}  Re8 {[%clk 0:01:04]} 19. Rac1 {[%clk 0:01:12]}  Rc8 {[%clk 0:01:03]} 20. g3 {[%clk 0:01:07]}  Ngf8 {[%clk 0:01:00]} 21. Ba6 {[%clk 0:01:03]}  Rc7 {[%clk 0:00:59]} 22. Re2 {[%clk 0:00:58]}  Ne6 {[%clk 0:00:58]} 23. Qg4 {[%clk 0:00:43]}  g6 {[%clk 0:00:56]} 24. Rec2 {[%clk 0:00:39]}  h5 {[%clk 0:00:55]} 25. Qd1 {[%clk 0:00:39]}  Qa8 {[%clk 0:00:39]} 26. Bf1 {[%clk 0:00:32]}  h4 {[%clk 0:00:33]} 27. gxh4 {[%clk 0:00:25]}  Bxh4 {[%clk 0:00:33]} 28. Bg2 {[%clk 0:00:25]}  Nf6 {[%clk 0:00:28]} 29. Qd3 {[%clk 0:00:19]}  Ng7 {[%clk 0:00:25]} 30. Nb6 {[%clk 0:00:18]}  Qd8 {[%clk 0:00:22]} 31. Bf4 {[%clk 0:00:14]}  Rce7 {[%clk 0:00:22]} 32. Rxc6 {[%clk 0:00:11]}  Kh7 {[%clk 0:00:18]} 33. Kh2 {[%clk 0:00:11]}  Ngh5 {[%clk 0:00:16]} 34. Bc7 {[%clk 0:00:09]}  Rxc7 {[%clk 0:00:13]} 35. Rxc7 {[%clk 0:00:09]}  Kg7 {[%clk 0:00:13]} 36. Qf3 {[%clk 0:00:08]}  Bg5 {[%clk 0:00:14]} 37. R1c6 {[%clk 0:00:08]}  Bf4+ {[%clk 0:00:14]} 38. Kh1 {[%clk 0:00:07]}  Bxc7 {[%clk 0:00:14]} 39. Na4 {[%clk 0:00:03]}  Re1+ {[%clk 0:00:14]} 40. Bf1 {[%clk 0:00:04]}  Rxf1+ {[%clk 0:00:14]} 41. Kg2 {[%clk 0:00:04]}  Re1 {[%clk 0:00:14]} 42. Rxf6 {[%clk 0:00:01]}  Nxf6 {[%clk 0:00:14]} 43. Nc5 {[%clk 0:00:01]}  Ne4 {[%clk 0:00:14]} 44. Nd3 {[%clk 0:00:01]}  Qg5+ {[%clk 0:00:14]} 45. Qg4 {[%clk 0:00:01]}  Qxg4+ {[%clk 0:00:14]} 46. hxg4 {[%clk 0:00:02]}  Rd1 {[%clk 0:00:15]} 47. Nxb4 {[%clk 0:00:02]}  Rd2 {[%clk 0:00:15]} 48. Kf3 {[%clk 0:00:02]}  Rxf2+ {[%clk 0:00:15]} 49. Ke3 {[%clk 0:00:02]}  Bf4+ {[%clk 0:00:15]} 0-1


[Site "https://www.chess.com"]

[Event "Titled Tuesday Blitz March 01 Late 2022"]
[White "Zhou, Qiyu"]
[Black "Gerbelli Neto, Eduardo"]
[WhiteFideId "505161"]
[BlackFideId "2103281"]
[WhiteElo "1925"]
[BlackElo "2178"]
[Result "0-1"]
[Round "08"]
[TimeControl "180+1"]
[Date "2022.03.02"]
[WhiteClock "0:00:02"]
[BlackClock "0:00:35"]

1. e4 {[%clk 0:03:00]}  e5 {[%clk 0:02:59]} 2. Nf3 {[%clk 0:03:00]}  Nc6 {[%clk 0:02:59]} 3. Bb5 {[%clk 0:03:01]}  a6 {[%clk 0:03:00]} 4. Ba4 {[%clk 0:03:00]}  d6 {[%clk 0:03:00]} 5. c3 {[%clk 0:02:57]}  f5 {[%clk 0:03:00]} 6. d3 {[%clk 0:02:57]}  Be7 {[%clk 0:03:00]} 7. O-O {[%clk 0:02:54]}  Nf6 {[%clk 0:03:00]} 8. Bb3 {[%clk 0:02:49]}  d5 {[%clk 0:02:56]} 9. exd5 {[%clk 0:02:46]}  Nxd5 {[%clk 0:02:57]} 10. Re1 {[%clk 0:02:46]}  Bf6 {[%clk 0:02:53]} 11. d4 {[%clk 0:02:26]}  e4 {[%clk 0:02:52]} 12. Ne5 {[%clk 0:02:24]}  O-O {[%clk 0:02:42]} 13. Nxc6 {[%clk 0:02:06]}  bxc6 {[%clk 0:02:43]} 14. Nd2 {[%clk 0:01:53]}  Kh8 {[%clk 0:02:36]} 15. Nf1 {[%clk 0:01:47]}  Qd6 {[%clk 0:02:00]} 16. Bd2 {[%clk 0:00:39]}  Rb8 {[%clk 0:01:53]} 17. Ne3 {[%clk 0:00:38]}  Nxe3 {[%clk 0:01:39]} 18. fxe3 {[%clk 0:00:39]}  Be6 {[%clk 0:01:34]} 19. c4 {[%clk 0:00:34]}  c5 {[%clk 0:01:30]} 20. d5 {[%clk 0:00:30]}  Bf7 {[%clk 0:01:29]} 21. Bc3 {[%clk 0:00:21]}  Bxc3 {[%clk 0:01:28]} 22. bxc3 {[%clk 0:00:22]}  Qe5 {[%clk 0:01:28]} 23. Qd2 {[%clk 0:00:18]}  Bh5 {[%clk 0:01:27]} 24. Rf1 {[%clk 0:00:18]}  Rbd8 {[%clk 0:01:23]} 25. Rf2 {[%clk 0:00:16]}  Rd6 {[%clk 0:01:23]} 26. Raf1 {[%clk 0:00:16]}  Rdf6 {[%clk 0:01:23]} 27. g3 {[%clk 0:00:11]}  g5 {[%clk 0:01:10]} 28. Bd1 {[%clk 0:00:06]}  Bxd1 {[%clk 0:01:09]} 29. Qxd1 {[%clk 0:00:03]}  Qxc3 {[%clk 0:01:04]} 30. Qh5 {[%clk 0:00:02]}  Qxe3 {[%clk 0:01:04]} 31. d6 {[%clk 0:00:02]}  cxd6 {[%clk 0:01:04]} 32. Kh1 {[%clk 0:00:02]}  f4 {[%clk 0:00:35]} 0-1


[Site "https://www.chess.com"]

[Event "Titled Tuesday Blitz March 01 Late 2022"]
[White "Zubritskiy, Artyom"]
[Black "Tomiello, Mateus Costamilan"]
[WhiteFideId "4181247"]
[BlackFideId "22701958"]
[WhiteElo "2459"]
[BlackElo "1975"]
[Result "1-0"]
[Round "08"]
[TimeControl "180+1"]
[Date "2022.03.01"]
[WhiteClock "0:00:06"]
[BlackClock "0:00:04"]

1. d4 {[%clk 0:02:55]}  Nf6 {[%clk 0:02:58]} 2. c4 {[%clk 0:02:54]}  e6 {[%clk 0:02:56]} 3. g3 {[%clk 0:02:55]}  d5 {[%clk 0:02:55]} 4. Nf3 {[%clk 0:02:55]}  a6 {[%clk 0:02:54]} 5. cxd5 {[%clk 0:02:55]}  exd5 {[%clk 0:02:54]} 6. Bg2 {[%clk 0:02:55]}  Be7 {[%clk 0:02:53]} 7. O-O {[%clk 0:02:55]}  O-O {[%clk 0:02:53]} 8. Bf4 {[%clk 0:02:55]}  c6 {[%clk 0:02:48]} 9. Nbd2 {[%clk 0:02:50]}  Nbd7 {[%clk 0:02:45]} 10. Qc2 {[%clk 0:02:48]}  Re8 {[%clk 0:02:44]} 11. Rad1 {[%clk 0:02:21]}  Bf8 {[%clk 0:02:40]} 12. Rfe1 {[%clk 0:02:19]}  Ne4 {[%clk 0:02:36]} 13. Nxe4 {[%clk 0:02:18]}  dxe4 {[%clk 0:02:35]} 14. Ng5 {[%clk 0:02:17]}  Nf6 {[%clk 0:02:06]} 15. Nxe4 {[%clk 0:02:11]}  Nd5 {[%clk 0:02:04]} 16. Ng5 {[%clk 0:02:04]}  g6 {[%clk 0:02:00]} 17. Bc1 {[%clk 0:01:58]}  h6 {[%clk 0:01:53]} 18. Nf3 {[%clk 0:01:51]}  Bf5 {[%clk 0:01:52]} 19. e4 {[%clk 0:01:50]}  Nb4 {[%clk 0:01:52]} 20. Qb1 {[%clk 0:01:49]}  Be6 {[%clk 0:01:30]} 21. a3 {[%clk 0:01:47]}  Ba2 {[%clk 0:01:29]} 22. Qa1 {[%clk 0:01:46]}  Bb3 {[%clk 0:01:19]} 23. axb4 {[%clk 0:01:45]}  Bxd1 {[%clk 0:01:20]} 24. Rxd1 {[%clk 0:01:45]}  Rxe4 {[%clk 0:01:17]} 25. Be3 {[%clk 0:01:41]}  Re8 {[%clk 0:01:13]} 26. Ne5 {[%clk 0:01:37]}  Bg7 {[%clk 0:01:11]} 27. Nd3 {[%clk 0:01:21]}  Qd6 {[%clk 0:01:01]} 28. Nc5 {[%clk 0:01:14]}  b6 {[%clk 0:00:59]} 29. Nd3 {[%clk 0:01:10]}  a5 {[%clk 0:00:55]} 30. bxa5 {[%clk 0:01:08]}  Rxa5 {[%clk 0:00:55]} 31. Qc1 {[%clk 0:01:09]}  Bxd4 {[%clk 0:00:51]} 32. Qxc6 {[%clk 0:00:58]}  Rd8 {[%clk 0:00:37]} 33. Qxd6 {[%clk 0:00:19]}  Rxd6 {[%clk 0:00:37]} 34. Nf4 {[%clk 0:00:19]}  Be5 {[%clk 0:00:28]} 35. Nd5 {[%clk 0:00:19]}  Kg7 {[%clk 0:00:18]} 36. b4 {[%clk 0:00:18]}  Rb5 {[%clk 0:00:14]} 37. Kf1 {[%clk 0:00:16]}  Bb2 {[%clk 0:00:09]} 38. Ke2 {[%clk 0:00:16]}  Ba3 {[%clk 0:00:09]} 39. Bd4+ {[%clk 0:00:09]}  Kf8 {[%clk 0:00:07]} 40. Bc3 {[%clk 0:00:08]}  Rc6 {[%clk 0:00:04]} 41. Kd3 {[%clk 0:00:05]}  Rd6 {[%clk 0:00:02]} 42. Kc4 {[%clk 0:00:05]}  Rbxd5 {[%clk 0:00:02]} 43. Bxd5 {[%clk 0:00:05]}  Ke7 {[%clk 0:00:02]} 44. Re1+ {[%clk 0:00:04]}  Kd7 {[%clk 0:00:02]} 45. Ra1 {[%clk 0:00:04]}  b5+ {[%clk 0:00:03]} 46. Kc5 {[%clk 0:00:03]}  Bb2 {[%clk 0:00:03]} 47. Bxb2 {[%clk 0:00:03]}  Rf6 {[%clk 0:00:03]} 48. Ra7+ {[%clk 0:00:03]}  Kc8 {[%clk 0:00:03]} 49. Bxf6 {[%clk 0:00:04]}  Kb8 {[%clk 0:00:03]} 50. Kb6 {[%clk 0:00:05]}  Kc8 {[%clk 0:00:04]} 51. Bc6 {[%clk 0:00:06]} 1-0


[Site "https://www.chess.com"]

[Event "Titled Tuesday Blitz March 01 Late 2022"]
[White "Antonova, Nadezhda"]
[Black "Toncheva, Nadya"]
[WhiteFideId "14700182"]
[BlackFideId "2924056"]
[WhiteElo "1765"]
[BlackElo "1920"]
[Result "0-1"]
[Round "09"]
[TimeControl "180+1"]
[Date "2022.03.02"]
[WhiteClock "0:00:30"]
[BlackClock "0:00:07"]

1. Nf3 {[%clk 0:02:59]}  Nf6 {[%clk 0:02:57]} 2. b3 {[%clk 0:02:59]}  d5 {[%clk 0:02:57]} 3. Bb2 {[%clk 0:03:00]}  Bf5 {[%clk 0:02:56]} 4. g3 {[%clk 0:03:00]}  e6 {[%clk 0:02:56]} 5. Bg2 {[%clk 0:03:01]}  c5 {[%clk 0:02:56]} 6. O-O {[%clk 0:03:01]}  Nc6 {[%clk 0:02:56]} 7. d3 {[%clk 0:03:00]}  Be7 {[%clk 0:02:57]} 8. Nh4 {[%clk 0:02:59]}  Bg6 {[%clk 0:02:56]} 9. Nxg6 {[%clk 0:02:58]}  hxg6 {[%clk 0:02:57]} 10. Nd2 {[%clk 0:02:59]}  Qc7 {[%clk 0:02:55]} 11. h3 {[%clk 0:02:58]}  O-O-O {[%clk 0:02:50]} 12. Qe1 {[%clk 0:02:58]}  g5 {[%clk 0:02:50]} 13. e4 {[%clk 0:02:57]}  d4 {[%clk 0:02:37]} 14. a3 {[%clk 0:02:50]}  g4 {[%clk 0:02:30]} 15. hxg4 {[%clk 0:02:42]}  Nxg4 {[%clk 0:02:27]} 16. Qe2 {[%clk 0:02:42]}  Nf6 {[%clk 0:01:41]} 17. Nc4 {[%clk 0:02:37]}  b5 {[%clk 0:01:34]} 18. Nd2 {[%clk 0:02:35]}  Rh6 {[%clk 0:01:26]} 19. Bc1 {[%clk 0:02:16]}  Rdh8 {[%clk 0:01:24]} 20. Nf3 {[%clk 0:02:11]}  Rh5 {[%clk 0:01:22]} 21. Bf4 {[%clk 0:01:55]}  Qd8 {[%clk 0:01:03]} 22. a4 {[%clk 0:01:35]}  b4 {[%clk 0:00:50]} 23. e5 {[%clk 0:01:05]}  Nd5 {[%clk 0:00:38]} 24. Nd2 {[%clk 0:01:05]}  g5 {[%clk 0:00:19]} 25. g4 {[%clk 0:00:58]}  Nxf4 {[%clk 0:00:16]} 26. Qf3 {[%clk 0:00:55]}  Nd5 {[%clk 0:00:03]} 27. gxh5 {[%clk 0:00:54]}  g4 {[%clk 0:00:04]} 28. Qxg4 {[%clk 0:00:52]}  Rg8 {[%clk 0:00:04]} 29. Qf3 {[%clk 0:00:49]}  Qf8 {[%clk 0:00:03]} 30. Ne4 {[%clk 0:00:46]}  Nxe5 {[%clk 0:00:03]} 31. Qe2 {[%clk 0:00:39]}  Nf4 {[%clk 0:00:03]} 32. Qf3 {[%clk 0:00:38]}  Nxf3+ {[%clk 0:00:03]} 33. Kh1 {[%clk 0:00:39]}  Rxg2 {[%clk 0:00:04]} 34. Ng3 {[%clk 0:00:36]}  Qh6 {[%clk 0:00:04]} 35. Rg1 {[%clk 0:00:32]}  Rxg1+ {[%clk 0:00:03]} 36. Rxg1 {[%clk 0:00:32]}  Nxg1 {[%clk 0:00:04]} 37. Kxg1 {[%clk 0:00:32]}  Nxh5 {[%clk 0:00:05]} 38. Ne4 {[%clk 0:00:32]}  Qc1+ {[%clk 0:00:04]} 39. Kh2 {[%clk 0:00:31]}  Qxc2 {[%clk 0:00:05]} 40. Kg2 {[%clk 0:00:29]}  Qxb3 {[%clk 0:00:06]} 41. Kf3 {[%clk 0:00:29]}  Qxd3+ {[%clk 0:00:06]} 42. Kg4 {[%clk 0:00:30]}  Qxe4+ {[%clk 0:00:06]} 43. Kxh5 {[%clk 0:00:30]}  Qg6# {[%clk 0:00:07]} 0-1


[Site "https://www.chess.com"]

[Event "Titled Tuesday Blitz March 01 Late 2022"]
[White "Bibasa, Bob"]
[Black "Weetik, Vjacheslav"]
[WhiteFideId "10000240"]
[BlackFideId "4153472"]
[WhiteElo "2056"]
[BlackElo "2469"]
[Result "1-0"]
[Round "09"]
[TimeControl "180+1"]
[Date "2022.03.01"]
[WhiteClock "0:01:20"]
[BlackClock "0:00:31"]

1. e4 {[%clk 0:03:00]}  c6 {[%clk 0:03:00]} 2. d4 {[%clk 0:03:01]}  d5 {[%clk 0:03:00]} 3. exd5 {[%clk 0:03:01]}  cxd5 {[%clk 0:03:00]} 4. Bd3 {[%clk 0:03:02]}  Nc6 {[%clk 0:03:01]} 5. c3 {[%clk 0:03:03]}  Qc7 {[%clk 0:03:01]} 6. f4 {[%clk 0:03:03]}  Nh6 {[%clk 0:02:57]} 7. Nf3 {[%clk 0:03:02]}  Bf5 {[%clk 0:02:54]} 8. O-O {[%clk 0:03:01]}  e6 {[%clk 0:02:44]} 9. Ne5 {[%clk 0:02:58]}  Be7 {[%clk 0:02:34]} 10. Na3 {[%clk 0:02:26]}  Bxa3 {[%clk 0:02:28]} 11. bxa3 {[%clk 0:02:26]}  Bxd3 {[%clk 0:02:27]} 12. Qxd3 {[%clk 0:02:25]}  Nf5 {[%clk 0:02:27]} 13. a4 {[%clk 0:02:21]}  O-O {[%clk 0:02:27]} 14. Ba3 {[%clk 0:02:21]}  Rfc8 {[%clk 0:02:24]} 15. Rac1 {[%clk 0:02:19]}  Qa5 {[%clk 0:02:01]} 16. g4 {[%clk 0:02:13]}  Nh6 {[%clk 0:01:47]} 17. f5 {[%clk 0:02:08]}  Qxa4 {[%clk 0:01:43]} 18. Bd6 {[%clk 0:02:08]}  f6 {[%clk 0:01:33]} 19. g5 {[%clk 0:01:31]}  Nxf5 {[%clk 0:00:42]} 20. gxf6 {[%clk 0:01:30]}  gxf6 {[%clk 0:00:41]} 21. Rxf5 {[%clk 0:01:29]}  exf5 {[%clk 0:00:37]} 22. Qxf5 {[%clk 0:01:28]}  fxe5 {[%clk 0:00:37]} 23. Qg5+ {[%clk 0:01:25]}  Kh8 {[%clk 0:00:31]} 24. Qf6+ {[%clk 0:01:25]}  Kg8 {[%clk 0:00:31]} 25. Kh1 {[%clk 0:01:20]} 1-0


[Site "https://www.chess.com"]